[Event "Titled Tuesday Blitz August 3 2021"]
[White "Spitzl, Vinzent"]
[Black "Siniauski, Artsiom"]
[WhiteFideId "12901253"]
[BlackFideId "13512269"]
[WhiteElo "2192"]
[BlackElo "2210"]
[Result "1-0"]
[Round "07"]
[TimeControl "180+1"]
[Date "2021.08.03"]
[WhiteClock "0:00:03"]
[BlackClock "0:00:05"]

1. e4 {[%clk 0:03:00]}  e6 {[%clk 0:02:57]} 2. d4 {[%clk 0:03:00]}  d5 {[%clk 0:02:57]} 3. Nd2 {[%clk 0:02:59]}  c5 {[%clk 0:02:57]} 4. exd5 {[%clk 0:02:59]}  Qxd5 {[%clk 0:02:58]} 5. Ngf3 {[%clk 0:02:59]}  cxd4 {[%clk 0:02:58]} 6. Bc4 {[%clk 0:02:59]}  Qd8 {[%clk 0:02:58]} 7. O-O {[%clk 0:02:58]}  Nc6 {[%clk 0:02:59]} 8. Nb3 {[%clk 0:02:53]}  a6 {[%clk 0:02:59]} 9. Nbxd4 {[%clk 0:02:52]}  Nxd4 {[%clk 0:03:00]} 10. Qxd4 {[%clk 0:02:53]}  Qxd4 {[%clk 0:03:00]} 11. Nxd4 {[%clk 0:02:53]}  Bd7 {[%clk 0:02:57]} 12. Bb3 {[%clk 0:02:47]}  Bc5 {[%clk 0:02:57]} 13. Be3 {[%clk 0:02:42]}  Bxd4 {[%clk 0:02:46]} 14. Bxd4 {[%clk 0:02:42]}  f6 {[%clk 0:02:46]} 15. f4 {[%clk 0:02:30]}  O-O-O {[%clk 0:02:45]} 16. Bb6 {[%clk 0:02:24]}  Re8 {[%clk 0:02:44]} 17. Rad1 {[%clk 0:02:22]}  Nh6 {[%clk 0:02:42]} 18. Rd2 {[%clk 0:02:13]}  Bc6 {[%clk 0:02:41]} 19. Rfd1 {[%clk 0:02:11]}  Nf7 {[%clk 0:02:04]} 20. f5 {[%clk 0:02:02]}  Bd5 {[%clk 0:02:04]} 21. Bxd5 {[%clk 0:01:53]}  exd5 {[%clk 0:02:04]} 22. Rxd5 {[%clk 0:01:53]}  Re7 {[%clk 0:02:04]} 23. c4 {[%clk 0:01:41]}  Rhe8 {[%clk 0:02:03]} 24. b3 {[%clk 0:01:37]}  Re1+ {[%clk 0:02:02]} 25. Rxe1 {[%clk 0:01:37]}  Rxe1+ {[%clk 0:02:03]} 26. Kf2 {[%clk 0:01:37]}  Re5 {[%clk 0:01:49]} 27. Rxe5 {[%clk 0:01:21]}  Nxe5 {[%clk 0:01:49]} 28. Ke3 {[%clk 0:00:55]}  Kd7 {[%clk 0:01:42]} 29. h3 {[%clk 0:00:51]}  Kc6 {[%clk 0:01:39]} 30. Bd4 {[%clk 0:00:51]}  Nf7 {[%clk 0:01:40]} 31. h4 {[%clk 0:00:48]}  h5 {[%clk 0:01:37]} 32. Kf4 {[%clk 0:00:45]}  Nd6 {[%clk 0:01:35]} 33. Bb2 {[%clk 0:00:41]}  b5 {[%clk 0:01:21]} 34. Ba3 {[%clk 0:00:40]}  bxc4 {[%clk 0:01:19]} 35. bxc4 {[%clk 0:00:32]}  Nxc4 {[%clk 0:01:02]} 36. Bf8 {[%clk 0:00:32]}  Ne5 {[%clk 0:00:57]} 37. Bxg7 {[%clk 0:00:28]}  Ng4 {[%clk 0:00:58]} 38. Ke4 {[%clk 0:00:20]}  Kc5 {[%clk 0:00:58]} 39. Bf8+ {[%clk 0:00:20]}  Kc4 {[%clk 0:00:58]} 40. Bd6 {[%clk 0:00:19]}  a5 {[%clk 0:00:56]} 41. Be7 {[%clk 0:00:15]}  a4 {[%clk 0:00:56]} 42. Bd6 {[%clk 0:00:15]}  Nf2+ {[%clk 0:00:46]} 43. Kf3 {[%clk 0:00:15]}  Ng4 {[%clk 0:00:46]} 44. Ke4 {[%clk 0:00:14]}  Nf2+ {[%clk 0:00:45]} 45. Kf3 {[%clk 0:00:14]}  Ng4 {[%clk 0:00:45]} 46. Bf4 {[%clk 0:00:12]}  Kd3 {[%clk 0:00:36]} 47. a3 {[%clk 0:00:12]}  Kd4 {[%clk 0:00:34]} 48. Bd6 {[%clk 0:00:12]}  Kd3 {[%clk 0:00:32]} 49. Bb4 {[%clk 0:00:11]}  Ne3 {[%clk 0:00:27]} 50. g3 {[%clk 0:00:08]}  Nxf5 {[%clk 0:00:20]} 51. g4 {[%clk 0:00:07]}  Nd4+ {[%clk 0:00:12]} 52. Kg3 {[%clk 0:00:05]}  hxg4 {[%clk 0:00:13]} 53. Kxg4 {[%clk 0:00:06]}  Ke4 {[%clk 0:00:11]} 54. h5 {[%clk 0:00:05]}  f5+ {[%clk 0:00:12]} 55. Kg5 {[%clk 0:00:04]}  f4 {[%clk 0:00:08]} 56. h6 {[%clk 0:00:03]}  f3 {[%clk 0:00:08]} 57. Be1 {[%clk 0:00:03]}  Nc2 {[%clk 0:00:08]} 58. Bf2 {[%clk 0:00:03]}  Nxa3 {[%clk 0:00:05]} 59. h7 {[%clk 0:00:03]}  Nc4 {[%clk 0:00:05]} 60. h8=Q {[%clk 0:00:03]}  a3 {[%clk 0:00:05]} 61. Qd4# {[%clk 0:00:03]} 1-0


[Site "https://www.chess.com"]

[Event "Titled Tuesday Blitz August 3 2021"]
[White "Srihari L R"]
[Black "Farahat, Ali"]
[WhiteFideId "46617116"]
[BlackFideId "10600507"]
[WhiteElo "2121"]
[BlackElo "2321"]
[Result "1-0"]
[Round "07"]
[TimeControl "180+1"]
[Date "2021.08.03"]
[WhiteClock "0:00:40"]
[BlackClock "0:00:27"]

1. d4 {[%clk 0:03:00]}  d5 {[%clk 0:02:59]} 2. c4 {[%clk 0:02:59]}  c6 {[%clk 0:03:00]} 3. Nf3 {[%clk 0:02:59]}  Nf6 {[%clk 0:03:00]} 4. Qc2 {[%clk 0:02:59]}  dxc4 {[%clk 0:02:59]} 5. Qxc4 {[%clk 0:02:58]}  Bg4 {[%clk 0:03:00]} 6. Nbd2 {[%clk 0:02:57]}  Nbd7 {[%clk 0:03:00]} 7. g3 {[%clk 0:02:57]}  g6 {[%clk 0:02:53]} 8. Bg2 {[%clk 0:02:55]}  Bg7 {[%clk 0:02:53]} 9. O-O {[%clk 0:02:46]}  O-O {[%clk 0:02:53]} 10. e3 {[%clk 0:02:46]}  Rc8 {[%clk 0:02:48]} 11. h3 {[%clk 0:02:45]}  Be6 {[%clk 0:02:45]} 12. Qe2 {[%clk 0:02:44]}  h6 {[%clk 0:02:16]} 13. Rd1 {[%clk 0:02:41]}  c5 {[%clk 0:02:12]} 14. b3 {[%clk 0:02:31]}  Qa5 {[%clk 0:01:59]} 15. Bb2 {[%clk 0:02:26]}  Nd5 {[%clk 0:01:55]} 16. Nc4 {[%clk 0:02:23]}  Nc3 {[%clk 0:01:44]} 17. Qd2 {[%clk 0:02:10]}  Nxd1 {[%clk 0:01:33]} 18. Nxa5 {[%clk 0:02:03]}  Nxb2 {[%clk 0:01:32]} 19. Qxb2 {[%clk 0:02:03]}  b6 {[%clk 0:01:31]} 20. Nc4 {[%clk 0:01:59]}  b5 {[%clk 0:01:29]} 21. Nce5 {[%clk 0:01:57]}  cxd4 {[%clk 0:01:26]} 22. exd4 {[%clk 0:01:53]}  Nxe5 {[%clk 0:01:25]} 23. Nxe5 {[%clk 0:01:45]}  Rfd8 {[%clk 0:01:23]} 24. Re1 {[%clk 0:01:33]}  Bd5 {[%clk 0:01:17]} 25. Bxd5 {[%clk 0:01:29]}  Rxd5 {[%clk 0:01:17]} 26. Nf3 {[%clk 0:01:27]}  e6 {[%clk 0:01:15]} 27. Kg2 {[%clk 0:01:26]}  Rcd8 {[%clk 0:01:14]} 28. Rc1 {[%clk 0:01:18]}  Bxd4 {[%clk 0:01:13]} 29. Nxd4 {[%clk 0:01:17]}  Rxd4 {[%clk 0:01:13]} 30. Rc7 {[%clk 0:01:17]}  a5 {[%clk 0:01:09]} 31. Qc1 {[%clk 0:01:11]}  Rd2 {[%clk 0:01:05]} 32. Qc5 {[%clk 0:01:06]}  Rxa2 {[%clk 0:01:01]} 33. Qxb5 {[%clk 0:01:01]}  Rb2 {[%clk 0:00:52]} 34. Rb7 {[%clk 0:00:53]}  h5 {[%clk 0:00:43]} 35. Rb8 {[%clk 0:00:49]}  Rxb8 {[%clk 0:00:39]} 36. Qxb8+ {[%clk 0:00:50]}  Kh7 {[%clk 0:00:38]} 37. Qf8 {[%clk 0:00:48]}  Rxb3 {[%clk 0:00:37]} 38. Qxf7+ {[%clk 0:00:47]}  Kh6 {[%clk 0:00:37]} 39. Qxe6 {[%clk 0:00:45]}  Rb7 {[%clk 0:00:34]} 40. Qe5 {[%clk 0:00:44]}  Rf7 {[%clk 0:00:27]} 41. Qxa5 {[%clk 0:00:40]} 1-0


[Site "https://www.chess.com"]

[Event "Titled Tuesday Blitz August 3 2021"]
[White "Tarigan, Gilbert Elroy"]
[Black "Novikov, Evgenij"]
[WhiteFideId "7108133"]
[BlackFideId "4125380"]
[WhiteElo "1908"]
[BlackElo "2242"]
[Result "1-0"]
[Round "07"]
[TimeControl "180+1"]
[Date "2021.08.03"]
[WhiteClock "0:00:41"]
[BlackClock "0:00:02"]

1. e4 {[%clk 0:03:00]}  c5 {[%clk 0:02:52]} 2. Nf3 {[%clk 0:02:57]}  d6 {[%clk 0:02:52]} 3. a3 {[%clk 0:02:50]}  Nf6 {[%clk 0:02:49]} 4. e5 {[%clk 0:02:46]}  dxe5 {[%clk 0:02:48]} 5. Nxe5 {[%clk 0:02:46]}  Nbd7 {[%clk 0:02:47]} 6. Nf3 {[%clk 0:02:42]}  e6 {[%clk 0:02:41]} 7. Bd3 {[%clk 0:02:37]}  Be7 {[%clk 0:02:41]} 8. O-O {[%clk 0:02:37]}  O-O {[%clk 0:02:41]} 9. b3 {[%clk 0:02:34]}  b6 {[%clk 0:02:39]} 10. Bb2 {[%clk 0:02:34]}  Bb7 {[%clk 0:02:39]} 11. Re1 {[%clk 0:02:32]}  Nd5 {[%clk 0:02:32]} 12. Nc3 {[%clk 0:02:30]}  Nxc3 {[%clk 0:02:27]} 13. Bxc3 {[%clk 0:02:28]}  Bf6 {[%clk 0:02:28]} 14. Qe2 {[%clk 0:02:24]}  Bxc3 {[%clk 0:02:24]} 15. dxc3 {[%clk 0:02:24]}  Nf6 {[%clk 0:02:22]} 16. Rad1 {[%clk 0:02:21]}  Qc7 {[%clk 0:02:20]} 17. c4 {[%clk 0:02:16]}  Rad8 {[%clk 0:02:16]} 18. Qe5 {[%clk 0:02:12]}  Qc6 {[%clk 0:02:11]} 19. h3 {[%clk 0:02:05]}  Rd4 {[%clk 0:01:48]} 20. Bf1 {[%clk 0:01:51]}  Rd7 {[%clk 0:01:38]} 21. Qe3 {[%clk 0:01:28]}  Qc7 {[%clk 0:01:31]} 22. Ne5 {[%clk 0:01:23]}  Rxd1 {[%clk 0:01:29]} 23. Rxd1 {[%clk 0:01:24]}  Rd8 {[%clk 0:01:28]} 24. Rd3 {[%clk 0:01:16]}  Be4 {[%clk 0:01:15]} 25. Rxd8+ {[%clk 0:01:10]}  Qxd8 {[%clk 0:01:16]} 26. Bd3 {[%clk 0:01:09]}  Bxd3 {[%clk 0:01:05]} 27. cxd3 {[%clk 0:01:10]}  Nd7 {[%clk 0:01:00]} 28. b4 {[%clk 0:01:03]}  cxb4 {[%clk 0:00:58]} 29. axb4 {[%clk 0:01:04]}  Nxe5 {[%clk 0:00:42]} 30. Qxe5 {[%clk 0:01:05]}  h6 {[%clk 0:00:42]} 31. c5 {[%clk 0:00:46]}  bxc5 {[%clk 0:00:41]} 32. bxc5 {[%clk 0:00:47]}  a5 {[%clk 0:00:32]} 33. c6 {[%clk 0:00:44]}  a4 {[%clk 0:00:08]} 34. c7 {[%clk 0:00:42]}  Qd7 {[%clk 0:00:08]} 35. Qc5 {[%clk 0:00:41]}  Qc8 {[%clk 0:00:08]} 36. Qb6 {[%clk 0:00:38]}  Kh7 {[%clk 0:00:02]} 37. Qb8 {[%clk 0:00:38]}  Qd7 {[%clk 0:00:01]} 38. c8=Q {[%clk 0:00:38]}  Qxd3 {[%clk 0:00:01]} 39. Qg8+ {[%clk 0:00:38]}  Kg6 {[%clk 0:00:02]} 40. Qg3+ {[%clk 0:00:38]}  Qxg3 {[%clk 0:00:02]} 41. fxg3 {[%clk 0:00:39]}  a3 {[%clk 0:00:02]} 42. Qa8 {[%clk 0:00:40]}  a2 {[%clk 0:00:02]} 43. Qxa2 {[%clk 0:00:41]} 1-0


[Site "https://www.chess.com"]

[Event "Titled Tuesday Blitz August 3 2021"]
[White "Ter-Sahakyan, Samvel"]
[Black "Batsuren, Dambasuren"]
[WhiteFideId "13302531"]
[BlackFideId "4902920"]
[WhiteElo "2551"]
[BlackElo "2371"]
[Result "0-1"]
[Round "07"]
[TimeControl "180+1"]
[Date "2021.08.03"]
[WhiteClock "0:00:03"]
[BlackClock "0:00:13"]

1. Nf3 {[%clk 0:03:00]}  Nf6 {[%clk 0:02:58]} 2. b3 {[%clk 0:03:00]}  b5 {[%clk 0:02:56]} 3. Bb2 {[%clk 0:02:57]}  Bb7 {[%clk 0:02:57]} 4. e3 {[%clk 0:02:56]}  a6 {[%clk 0:02:56]} 5. Be2 {[%clk 0:02:55]}  e6 {[%clk 0:02:56]} 6. O-O {[%clk 0:02:56]}  c5 {[%clk 0:02:57]} 7. c4 {[%clk 0:02:26]}  bxc4 {[%clk 0:02:49]} 8. bxc4 {[%clk 0:02:27]}  Be7 {[%clk 0:02:48]} 9. d3 {[%clk 0:02:24]}  O-O {[%clk 0:02:47]} 10. Nbd2 {[%clk 0:02:24]}  Nc6 {[%clk 0:02:45]} 11. Qc2 {[%clk 0:02:19]}  Nb4 {[%clk 0:02:39]} 12. Qc3 {[%clk 0:02:16]}  Rb8 {[%clk 0:02:35]} 13. Rfc1 {[%clk 0:02:12]}  d5 {[%clk 0:02:26]} 14. a3 {[%clk 0:02:09]}  Nc6 {[%clk 0:02:22]} 15. cxd5 {[%clk 0:02:03]}  exd5 {[%clk 0:02:22]} 16. Nb3 {[%clk 0:01:55]}  Ba8 {[%clk 0:02:17]} 17. Rab1 {[%clk 0:01:55]}  d4 {[%clk 0:01:49]} 18. exd4 {[%clk 0:01:55]}  Nd5 {[%clk 0:01:49]} 19. Qc2 {[%clk 0:01:55]}  Nxd4 {[%clk 0:01:48]} 20. Nbxd4 {[%clk 0:01:15]}  cxd4 {[%clk 0:01:49]} 21. Bxd4 {[%clk 0:01:15]}  Bxa3 {[%clk 0:01:42]} 22. Rxb8 {[%clk 0:01:13]}  Qxb8 {[%clk 0:01:43]} 23. Rb1 {[%clk 0:01:13]}  Qd6 {[%clk 0:01:34]} 24. Be5 {[%clk 0:01:08]}  Qg6 {[%clk 0:01:30]} 25. Qc4 {[%clk 0:00:46]}  Bd6 {[%clk 0:01:27]} 26. Qxa6 {[%clk 0:00:29]}  Nc3 {[%clk 0:00:49]} 27. Qxd6 {[%clk 0:00:29]}  Nxb1 {[%clk 0:00:48]} 28. Qxg6 {[%clk 0:00:12]}  hxg6 {[%clk 0:00:49]} 29. d4 {[%clk 0:00:10]}  Rd8 {[%clk 0:00:43]} 30. h4 {[%clk 0:00:03]}  Nc3 {[%clk 0:00:36]} 31. Bc4 {[%clk 0:00:03]}  Bd5 {[%clk 0:00:35]} 32. Bxd5 {[%clk 0:00:03]}  Rxd5 {[%clk 0:00:34]} 33. Kh2 {[%clk 0:00:03]}  f6 {[%clk 0:00:34]} 34. Bf4 {[%clk 0:00:04]}  Ne4 {[%clk 0:00:29]} 35. Be3 {[%clk 0:00:04]}  Kf7 {[%clk 0:00:30]} 36. g3 {[%clk 0:00:04]}  Rb5 {[%clk 0:00:28]} 37. Kg2 {[%clk 0:00:04]}  Rb2 {[%clk 0:00:27]} 38. Nh2 {[%clk 0:00:04]}  Ke6 {[%clk 0:00:26]} 39. Kf3 {[%clk 0:00:04]}  Kd5 {[%clk 0:00:25]} 40. Ng4 {[%clk 0:00:03]}  Nd6 {[%clk 0:00:24]} 41. Kg2 {[%clk 0:00:01]}  Nf5 {[%clk 0:00:24]} 42. Kf3 {[%clk 0:00:02]}  Nxd4+ {[%clk 0:00:23]} 43. Bxd4 {[%clk 0:00:02]}  Kxd4 {[%clk 0:00:24]} 44. Ne3 {[%clk 0:00:03]}  Rb3 {[%clk 0:00:23]} 45. Kf4 {[%clk 0:00:03]}  Rb2 {[%clk 0:00:20]} 46. Kf3 {[%clk 0:00:03]}  Ra2 {[%clk 0:00:19]} 47. Ng4 {[%clk 0:00:03]}  Kd5 {[%clk 0:00:18]} 48. Ne3+ {[%clk 0:00:03]}  Ke5 {[%clk 0:00:19]} 49. Ng4+ {[%clk 0:00:04]}  Kf5 {[%clk 0:00:19]} 50. Ne3+ {[%clk 0:00:04]}  Ke5 {[%clk 0:00:19]} 51. Ng4+ {[%clk 0:00:04]}  Ke6 {[%clk 0:00:20]} 52. Ne3 {[%clk 0:00:04]}  Ra3 {[%clk 0:00:19]} 53. Ke4 {[%clk 0:00:04]}  Ra4+ {[%clk 0:00:19]} 54. Kf3 {[%clk 0:00:05]}  Ra5 {[%clk 0:00:20]} 55. Ke4 {[%clk 0:00:05]}  g5 {[%clk 0:00:20]} 56. hxg5 {[%clk 0:00:05]}  Rxg5 {[%clk 0:00:21]} 57. Kf4 {[%clk 0:00:05]}  Ra5 {[%clk 0:00:21]} 58. g4 {[%clk 0:00:05]}  Ra4+ {[%clk 0:00:20]} 59. Kf3 {[%clk 0:00:05]}  Ke5 {[%clk 0:00:20]} 60. Kg3 {[%clk 0:00:04]}  Ra3 {[%clk 0:00:19]} 61. Kf3 {[%clk 0:00:04]}  g6 {[%clk 0:00:17]} 62. Kg2 {[%clk 0:00:03]}  Kf4 {[%clk 0:00:17]} 63. Nd5+ {[%clk 0:00:02]}  Kg5 {[%clk 0:00:18]} 64. f3 {[%clk 0:00:01]}  Rd3 {[%clk 0:00:18]} 65. Nc7 {[%clk 0:00:01]}  Kh4 {[%clk 0:00:14]} 66. Ne6 {[%clk 0:00:01]}  Rd2+ {[%clk 0:00:15]} 67. Kf1 {[%clk 0:00:02]}  Kg3 {[%clk 0:00:15]} 68. Nf8 {[%clk 0:00:02]}  Rf2+ {[%clk 0:00:15]} 69. Ke1 {[%clk 0:00:03]}  g5 {[%clk 0:00:12]} 70. Nd7 {[%clk 0:00:03]}  Rxf3 {[%clk 0:00:13]} 0-1


[Site "https://www.chess.com"]

[Event "Titled Tuesday Blitz August 3 2021"]
[White "Terry, Renato"]
[Black "Trent, Lawrence"]
[WhiteFideId "3803457"]
[BlackFideId "408638"]
[WhiteElo "2581"]
[BlackElo "2474"]
[Result "0-1"]
[Round "07"]
[TimeControl "180+1"]
[Date "2021.08.03"]
[WhiteClock "0:00:07"]
[BlackClock "0:00:20"]

1. e4 {[%clk 0:03:00]}  e6 {[%clk 0:02:58]} 2. d4 {[%clk 0:03:00]}  d5 {[%clk 0:02:59]} 3. exd5 {[%clk 0:03:01]}  exd5 {[%clk 0:02:58]} 4. Nf3 {[%clk 0:03:02]}  Bd6 {[%clk 0:02:58]} 5. c4 {[%clk 0:03:02]}  c6 {[%clk 0:02:51]} 6. Nc3 {[%clk 0:03:01]}  Ne7 {[%clk 0:02:51]} 7. Bd3 {[%clk 0:02:59]}  dxc4 {[%clk 0:02:50]} 8. Bxc4 {[%clk 0:03:00]}  O-O {[%clk 0:02:48]} 9. O-O {[%clk 0:02:57]}  Nd7 {[%clk 0:02:48]} 10. Ne4 {[%clk 0:02:54]}  Bc7 {[%clk 0:02:45]} 11. Bg5 {[%clk 0:02:54]}  Nb6 {[%clk 0:02:41]} 12. Bb3 {[%clk 0:02:52]}  Nbd5 {[%clk 0:02:32]} 13. Re1 {[%clk 0:02:32]}  f6 {[%clk 0:02:30]} 14. Bd2 {[%clk 0:02:24]}  b6 {[%clk 0:02:27]} 15. Rc1 {[%clk 0:02:22]}  Bg4 {[%clk 0:02:23]} 16. h3 {[%clk 0:02:22]}  Bh5 {[%clk 0:02:23]} 17. Bb4 {[%clk 0:02:07]}  Rf7 {[%clk 0:02:08]} 18. Bxe7 {[%clk 0:01:58]}  Rxe7 {[%clk 0:02:04]} 19. Rxc6 {[%clk 0:01:58]}  Kh8 {[%clk 0:02:04]} 20. Rc1 {[%clk 0:01:20]}  Bf4 {[%clk 0:02:02]} 21. Rc2 {[%clk 0:01:18]}  Qd7 {[%clk 0:01:50]} 22. Bxd5 {[%clk 0:01:00]}  Qxd5 {[%clk 0:01:50]} 23. Nc3 {[%clk 0:01:01]}  Rxe1+ {[%clk 0:01:42]} 24. Qxe1 {[%clk 0:01:02]}  Qf5 {[%clk 0:01:42]} 25. Qe4 {[%clk 0:00:57]}  Qxe4 {[%clk 0:01:40]} 26. Nxe4 {[%clk 0:00:57]}  Re8 {[%clk 0:01:40]} 27. Ng3 {[%clk 0:00:52]}  Bg6 {[%clk 0:01:39]} 28. Re2 {[%clk 0:00:43]}  Rc8 {[%clk 0:01:32]} 29. Re7 {[%clk 0:00:33]}  h5 {[%clk 0:01:30]} 30. Nh4 {[%clk 0:00:32]}  Rc1+ {[%clk 0:01:24]} 31. Kh2 {[%clk 0:00:32]}  Bb1 {[%clk 0:01:14]} 32. Nf3 {[%clk 0:00:21]}  g5 {[%clk 0:01:08]} 33. h4 {[%clk 0:00:21]}  a5 {[%clk 0:01:03]} 34. a3 {[%clk 0:00:16]}  Rc2 {[%clk 0:00:52]} 35. Kg1 {[%clk 0:00:17]}  Rc1+ {[%clk 0:00:46]} 36. Kh2 {[%clk 0:00:17]}  Ba2 {[%clk 0:00:37]} 37. Rb7 {[%clk 0:00:11]}  Bd5 {[%clk 0:00:36]} 38. Rxb6 {[%clk 0:00:10]}  Bxf3 {[%clk 0:00:36]} 39. gxf3 {[%clk 0:00:08]}  gxh4 {[%clk 0:00:36]} 40. Rxf6 {[%clk 0:00:09]}  Bc7 {[%clk 0:00:27]} 41. Rh6+ {[%clk 0:00:08]}  Kg7 {[%clk 0:00:27]} 42. Rxh5 {[%clk 0:00:08]}  hxg3+ {[%clk 0:00:27]} 43. fxg3 {[%clk 0:00:09]}  Rc2+ {[%clk 0:00:27]} 44. Kh3 {[%clk 0:00:10]}  Rxb2 {[%clk 0:00:27]} 45. Rc5 {[%clk 0:00:04]}  Bb6 {[%clk 0:00:27]} 46. Rc4 {[%clk 0:00:03]}  Rb3 {[%clk 0:00:25]} 47. Ra4 {[%clk 0:00:03]}  Rxf3 {[%clk 0:00:24]} 48. d5 {[%clk 0:00:02]}  Rd3 {[%clk 0:00:24]} 49. Kg4 {[%clk 0:00:03]}  Rxd5 {[%clk 0:00:24]} 50. Kf4 {[%clk 0:00:04]}  Rd4+ {[%clk 0:00:22]} 51. Rxd4 {[%clk 0:00:04]}  Bxd4 {[%clk 0:00:22]} 52. Ke4 {[%clk 0:00:05]}  Bb2 {[%clk 0:00:22]} 53. a4 {[%clk 0:00:05]}  Kg6 {[%clk 0:00:22]} 54. Kf4 {[%clk 0:00:05]}  Bc3 {[%clk 0:00:21]} 55. Kg4 {[%clk 0:00:05]}  Bd2 {[%clk 0:00:21]} 56. Kf3 {[%clk 0:00:06]}  Kf5 {[%clk 0:00:21]} 57. Ke2 {[%clk 0:00:06]}  Bb4 {[%clk 0:00:20]} 58. Kf3 {[%clk 0:00:07]}  Bd6 {[%clk 0:00:20]} 0-1


[Site "https://www.chess.com"]

[Event "Titled Tuesday Blitz August 3 2021"]
[White "Timmermans, Mark"]
[Black "Eternauta2400"]
[WhiteFideId "1026399"]
[WhiteElo "2460"]
[BlackElo "2528"]
[Result "1-0"]
[Round "07"]
[TimeControl "180+1"]
[Date "2021.08.03"]
[WhiteClock "0:00:11"]
[BlackClock "0:00:02"]

1. b4 {[%clk 0:02:54]}  a5 {[%clk 0:02:58]} 2. b5 {[%clk 0:02:48]}  e5 {[%clk 0:02:53]} 3. Bb2 {[%clk 0:02:46]}  d5 {[%clk 0:02:38]} 4. Bxe5 {[%clk 0:02:43]}  Bf5 {[%clk 0:02:34]} 5. e3 {[%clk 0:02:35]}  Nd7 {[%clk 0:02:29]} 6. Bb2 {[%clk 0:02:28]}  Ngf6 {[%clk 0:02:28]} 7. Nf3 {[%clk 0:02:14]}  a4 {[%clk 0:02:20]} 8. a3 {[%clk 0:02:05]}  Bg6 {[%clk 0:02:11]} 9. c4 {[%clk 0:02:02]}  Nc5 {[%clk 0:02:03]} 10. Nc3 {[%clk 0:01:51]}  dxc4 {[%clk 0:01:56]} 11. Bxc4 {[%clk 0:01:52]}  Bd3 {[%clk 0:01:51]} 12. Ba2 {[%clk 0:01:43]}  Be7 {[%clk 0:01:39]} 13. Ne5 {[%clk 0:01:27]}  O-O {[%clk 0:01:31]} 14. Bb1 {[%clk 0:01:27]}  Bxb1 {[%clk 0:01:22]} 15. Rxb1 {[%clk 0:01:28]}  Bd6 {[%clk 0:01:22]} 16. d4 {[%clk 0:01:15]}  Bxe5 {[%clk 0:01:17]} 17. dxc5 {[%clk 0:01:13]}  Qe7 {[%clk 0:01:13]} 18. O-O {[%clk 0:01:09]}  Qxc5 {[%clk 0:01:10]} 19. Nxa4 {[%clk 0:01:10]}  Qe7 {[%clk 0:01:05]} 20. Bxe5 {[%clk 0:01:08]}  Qxe5 {[%clk 0:01:04]} 21. Rb4 {[%clk 0:01:00]}  Rfd8 {[%clk 0:01:04]} 22. Qb3 {[%clk 0:00:59]}  b6 {[%clk 0:00:58]} 23. Nb2 {[%clk 0:00:42]}  g6 {[%clk 0:00:53]} 24. a4 {[%clk 0:00:38]}  Rd7 {[%clk 0:00:49]} 25. Nd3 {[%clk 0:00:37]}  Qf5 {[%clk 0:00:46]} 26. Nf4 {[%clk 0:00:34]}  Rad8 {[%clk 0:00:42]} 27. Ne2 {[%clk 0:00:29]}  Qd3 {[%clk 0:00:37]} 28. Nd4 {[%clk 0:00:26]}  Qxb3 {[%clk 0:00:28]} 29. Rxb3 {[%clk 0:00:27]}  Ne4 {[%clk 0:00:29]} 30. Rc1 {[%clk 0:00:19]}  Nc5 {[%clk 0:00:28]} 31. Ra3 {[%clk 0:00:18]}  Ne4 {[%clk 0:00:22]} 32. h3 {[%clk 0:00:18]}  Ra8 {[%clk 0:00:18]} 33. Rc6 {[%clk 0:00:18]}  Nc5 {[%clk 0:00:17]} 34. a5 {[%clk 0:00:18]}  Nb7 {[%clk 0:00:04]} 35. a6 {[%clk 0:00:18]}  Nc5 {[%clk 0:00:03]} 36. Rc3 {[%clk 0:00:13]}  Kg7 {[%clk 0:00:03]} 37. R3xc5 {[%clk 0:00:13]}  bxc5 {[%clk 0:00:02]} 38. Rxc5 {[%clk 0:00:14]}  Rb8 {[%clk 0:00:02]} 39. Kf1 {[%clk 0:00:14]}  Ra8 {[%clk 0:00:02]} 40. Ke2 {[%clk 0:00:13]}  Rb8 {[%clk 0:00:02]} 41. Kd3 {[%clk 0:00:14]}  Ra8 {[%clk 0:00:02]} 42. Kc4 {[%clk 0:00:14]}  Rb8 {[%clk 0:00:02]} 43. Rd5 {[%clk 0:00:15]}  Re7 {[%clk 0:00:01]} 44. Kc5 {[%clk 0:00:15]}  Ra8 {[%clk 0:00:02]} 45. h4 {[%clk 0:00:12]}  Rb8 {[%clk 0:00:02]} 46. Nc6 {[%clk 0:00:13]}  Rbe8 {[%clk 0:00:01]} 47. Nxe7 {[%clk 0:00:13]}  Rxe7 {[%clk 0:00:02]} 48. Kc6 {[%clk 0:00:11]} 1-0


[Site "https://www.chess.com"]